bitfinex/quotes_BTCUSD_20241014
["timestamp","ask_amount","ask_price","bid_price","bid_amount"]
[1728886465722,0.160082,63923.0,63922.0,0.51368119]
[1728886466191,0.158082,63923.0,63922.0,0.51668119]
[1728886466417,0.158082,63923.0,63922.0,0.52068119]
[1728886466900,0.158082,63923.0,63922.0,0.51668119]
[1728886467125,0.158082,63923.0,63922.0,0.51968119]
[1728886467348,0.158082,63923.0,63922.0,0.51468119]
[1728886467836,0.158082,63923.0,63922.0,0.52168119]
[1728886468074,0.158082,63923.0,63922.0,0.51468119]
[1728886468310,0.158082,63923.0,63922.0,0.51168119]
[1728886468541,0.158082,63923.0,63922.0,0.51468119]
[1728886468769,0.158082,63923.0,63922.0,0.51368119]
[1728886469000,0.158082,63923.0,63922.0,0.52068119]
[1728886469268,0.158082,63923.0,63922.0,0.49686966]
[1728886469499,0.158082,63923.0,63922.0,0.51772849]
[1728886470667,0.158082,63923.0,63922.0,0.51972849]
[1728886470904,0.158082,63923.0,63922.0,0.51772849]
[1728886471365,0.158082,63923.0,63922.0,0.52472849]
[1728886471587,0.158082,63923.0,63922.0,0.51172849]
[1728886471787,0.159082,63923.0,63922.0,0.51372849]
[1728886472048,0.159082,63923.0,63922.0,0.51572849]
[1728886472049,0.272782,63923.0,63922.0,0.51572849]
[1728886472263,0.273782,63923.0,63922.0,0.51172849]
[1728886472478,0.273782,63923.0,63922.0,0.51872849]
[1728886472689,0.273782,63923.0,63922.0,0.52472849]
[1728886473118,0.273782,63923.0,63922.0,0.51872849]
[1728886473561,0.273782,63923.0,63922.0,0.50703542]
[1728886473774,0.273782,63923.0,63922.0,0.51175233]
[1728886473984,0.273782,63923.0,63922.0,0.51375233]
[1728886474457,0.273782,63923.0,63922.0,0.51175233]
[1728886474908,0.274782,63923.0,63922.0,0.51375233]
[1728886475838,0.274782,63923.0,63922.0,0.51175233]
[1728886475839,0.273782,63923.0,63922.0,0.51175233]
[1728886476059,0.373782,63923.0,63922.0,0.51175233]
[1728886476487,0.453482,63923.0,63922.0,0.51175233]
[1728886476914,0.453482,63923.0,63922.0,0.4851981]
[1728886477149,0.454482,63923.0,63922.0,0.51176584]
[1728886477367,0.453482,63923.0,63922.0,0.51176584]
[1728886477579,0.453482,63923.0,63922.0,0.51976584]
[1728886477788,0.453482,63923.0,63922.0,0.50388774]
[1728886478215,0.453482,63923.0,63922.0,0.51188774]
[1728886478430,0.453482,63923.0,63922.0,0.53064552]
[1728886480014,0.453482,63923.0,63922.0,0.54651668]
[1728886482406,0.76287899,63923.0,63922.0,0.54651668]
[1728886482640,0.76287899,63923.0,63922.0,0.5277589]
[1728886482875,0.76287899,63923.0,63922.0,0.50016469]
[1728886483071,0.76287899,63923.0,63922.0,0.51603827]
[1728886483342,2.00487599,63923.0,63922.0,0.50690266]
[1728886483557,2.00487599,63923.0,63922.0,0.48302908]
[1728886483999,2.00487599,63923.0,63922.0,0.49216502]
[1728886484428,2.00587599,63923.0,63922.0,0.47502908]
[1728886484862,2.00587599,63923.0,63922.0,0.46932]
[1728886485079,2.00687599,63923.0,63922.0,0.47602901]
[1728886485308,2.00587599,63923.0,63922.0,0.47502901]
[1728886485744,2.00687599,63923.0,63922.0,0.47502901]
[1728886486175,2.00587599,63923.0,63922.0,0.484165]
[1728886486358,2.00787599,63923.0,63922.0,0.485165]
[1728886486577,2.00987599,63923.0,63922.0,0.485165]
[1728886486790,2.00987599,63923.0,63922.0,0.49689194]
[1728886487054,2.00687599,63923.0,63922.0,0.49689194]
[1728886487300,2.00887599,63923.0,63922.0,0.49689194]
[1728886487741,2.00687599,63923.0,63922.0,0.49589194]
[1728886487956,2.00787599,63923.0,63922.0,0.49589194]
[1728886488325,2.00787599,63923.0,63922.0,0.48675595]
[1728886488521,2.00787599,63923.0,63922.0,0.47502901]
[1728886488735,2.00787599,63923.0,63922.0,0.47503032]
[1728886489396,2.00687599,63923.0,63922.0,0.47503032]
[1728886489631,2.00587599,63923.0,63922.0,0.47503032]
[1728886490082,2.00787599,63923.0,63922.0,0.47503032]
[1728886490509,2.00587599,63923.0,63922.0,0.47503032]
[1728886490727,2.00787599,63923.0,63922.0,0.47503032]
[1728886490959,2.00687599,63923.0,63922.0,0.47503032]
[1728886491174,2.00787599,63923.0,63922.0,0.47503032]
[1728886491640,2.00687599,63923.0,63922.0,0.47503032]
[1728886492065,2.00787599,63923.0,63922.0,0.47503032]
[1728886492729,2.00787599,63923.0,63922.0,0.47502962]
[1728886495189,2.00787599,63923.0,63922.0,0.46932]
[1728886495631,2.00787599,63923.0,63922.0,0.31288]
[1728886495848,2.00787599,63923.0,63903.0,0.23387254]
[1728886495849,0.1053,63913.0,63912.0,0.01743628]
[1728886496066,1.77127811,63913.0,63912.0,0.00570957]
[1728886496285,1.76993198,63913.0,63912.0,0.00570957]
[1728886496507,0.001,63902.0,63896.0,0.23387254]
[1728886496724,0.251589,63902.0,63901.0,0.00653262]
[1728886496936,0.251589,63902.0,63901.0,0.04152135]
[1728886497149,0.251589,63902.0,63901.0,0.02739635]
[1728886498051,0.251589,63902.0,63901.0,0.03139635]
[1728886498511,0.250589,63902.0,63901.0,0.03139635]
[1728886498751,0.250589,63902.0,63901.0,0.03939635]
[1728886499232,0.250589,63902.0,63901.0,0.03539635]
[1728886499477,0.251589,63902.0,63901.0,0.03539635]
[1728886499944,0.251589,63902.0,63901.0,0.03939635]
[1728886501363,0.251589,63902.0,63901.0,0.03539635]
[1728886501573,0.251589,63902.0,63901.0,0.05879966]
[1728886502868,0.252589,63902.0,63901.0,0.04395097]
[1728886503076,0.252589,63902.0,63901.0,0.05878712]
[1728886503290,0.27593513,63902.0,63901.0,0.05878712]
[1728886503501,0.27693513,63902.0,63901.0,0.05878712]
[1728886503738,0.274589,63902.0,63901.0,0.05878712]
[1728886506726,0.274589,63902.0,63901.0,0.0413596]
[1728886506934,0.274589,63902.0,63901.0,0.0587885]
[1728886507385,0.274589,63902.0,63901.0,0.05878818]
[1728886509351,0.274589,63902.0,63901.0,0.0775407]
[1728886509563,0.274589,63902.0,63901.0,0.05878818]
[1728886511351,0.274589,63902.0,63901.0,0.0775407]
[1728886511605,0.274589,63902.0,63901.0,0.30031368]
[1728886511606,0.001,63902.0,63901.0,0.30031368]
[1728886511828,1.338697,63906.0,63901.0,0.46153769]
[1728886511829,1.22556305,63906.0,63901.0,0.46153769]
[1728886512077,1.22556305,63906.0,63905.0,0.09639798]
[1728886512295,1.22556305,63906.0,63905.0,0.14171337]
[1728886512538,1.22556305,63906.0,63905.0,0.156013]
[1728886513013,0.156463,63913.0,63905.0,0.31723701]
[1728886513241,0.001,63906.0,63905.0,0.01429963]
[1728886513457,0.156468,63911.0,63905.0,0.04533998]
[1728886513682,0.156468,63911.0,63907.0,0.09639798]
[1728886513902,0.156468,63911.0,63908.0,0.02657733]
[1728886514165,0.156468,63911.0,63909.0,0.00913954]
[1728886514384,0.256464,63913.0,63910.0,0.01485108]
[1728886514606,0.156465,63912.0,63911.0,0.02657733]
[1728886515749,0.096,63914.0,63911.0,0.02657733]
[1728886515963,0.156462,63914.0,63912.0,0.02657733]
[1728886516198,0.1,63915.0,63910.0,0.14313941]
[1728886516443,0.24151654,63922.0,63914.0,0.14313941]
[1728886516444,0.001644,63922.0,63914.0,0.14313941]
[1728886516663,0.23387254,63918.0,63915.0,0.02657225]
[1728886516890,0.001644,63922.0,63915.0,0.02657225]
[1728886516891,0.156446,63920.0,63917.0,0.14313941]
[1728886517109,0.156446,63920.0,63918.0,0.02657225]
[1728886517110,0.156445,63920.0,63918.0,0.02657225]
[1728886517323,0.001644,63922.0,63917.0,0.14313941]
[1728886517324,0.156448,63919.0,63917.0,0.14313941]
[1728886517541,0.156448,63919.0,63918.0,0.02656139]
[1728886517757,0.156448,63919.0,63918.0,0.04079726]
[1728886518226,0.156448,63919.0,63918.0,0.02595487]
[1728886518439,0.156448,63919.0,63918.0,0.04079737]
[1728886518871,0.156448,63919.0,63918.0,0.04379737]
[1728886519090,0.156448,63919.0,63918.0,0.02895482]
[1728886519323,0.156448,63919.0,63918.0,0.04379287]
[1728886519552,0.156448,63919.0,63918.0,0.04679287]
[1728886519985,0.157448,63919.0,63918.0,0.04679287]
[1728886520419,0.157448,63919.0,63918.0,0.032557]
[1728886520672,0.157448,63919.0,63918.0,0.029557]
[1728886520891,0.157448,63919.0,63918.0,0.032557]
[1728886521397,0.157448,63919.0,63918.0,0.029557]
[1728886521616,0.157448,63919.0,63918.0,0.01483805]
[1728886521854,0.157448,63919.0,63918.0,0.03154769]
[1728886522096,0.156448,63919.0,63918.0,0.03154769]
[1728886522316,0.156448,63919.0,63918.0,0.03454769]
[1728886522759,0.156448,63919.0,63918.0,0.03154769]
[1728886522998,0.156444,63921.0,63918.0,0.03154769]
[1728886523295,0.001644,63922.0,63919.0,0.02654769]
[1728886523552,0.158084,63922.0,63920.0,0.02084116]
[1728886523791,0.158084,63922.0,63921.0,0.02654769]
[1728886525188,0.158084,63922.0,63921.0,0.03254769]
[1728886525917,0.159084,63922.0,63921.0,0.03854769]
[1728886526374,0.159084,63922.0,63921.0,0.04454769]
[1728886526375,0.49616954,63922.0,63921.0,0.04454769]
[1728886526609,0.59982341,63922.0,63921.0,0.00570653]
[1728886526824,0.59982341,63922.0,63921.0,0.01170653]
[1728886527520,0.59982341,63922.0,63921.0,0.00570653]
[1728886527737,1.82538646,63922.0,63921.0,0.00570653]
[1728886528170,1.82538646,63922.0,63921.0,0.01170653]
[1728886528398,1.68224705,63922.0,63921.0,0.00570653]
[1728886528642,1.68124705,63922.0,63921.0,0.00570653]
[1728886528878,1.68224705,63922.0,63921.0,0.00570653]
[1728886532017,0.247445,63920.0,63919.0,0.02652818]
[1728886532467,0.247445,63920.0,63919.0,0.02752818]
[1728886532684,0.247445,63920.0,63919.0,0.02652818]
[1728886533122,0.247445,63920.0,63919.0,0.03452818]
[1728886533604,0.247445,63920.0,63919.0,0.03652818]
[1728886534060,0.247445,63920.0,63919.0,0.03452818]
[1728886534279,0.247445,63920.0,63919.0,0.02652818]
[1728886534493,0.350545,63920.0,63919.0,0.03452818]
[1728886534711,0.350545,63920.0,63919.0,0.04352818]
[1728886534934,0.350545,63920.0,63919.0,0.03452818]
[1728886535142,0.350545,63920.0,63919.0,0.02540866]
[1728886535368,0.350545,63920.0,63919.0,0.03452818]
[1728886535589,0.350545,63920.0,63919.0,0.02652818]
[1728886536031,0.350545,63920.0,63919.0,0.02540866]
[1728886536255,0.350545,63920.0,63919.0,0.03452818]
[1728886536707,0.350545,63920.0,63919.0,0.04252818]
[1728886537175,0.350545,63920.0,63919.0,0.04253025]
[1728886538352,0.352189,63920.0,63919.0,0.04253025]
[1728886539545,0.351189,63920.0,63919.0,0.04253025]
[1728886540497,0.351189,63920.0,63919.0,0.03081854]
[1728886540716,0.351189,63920.0,63919.0,0.02772565]
[1728886540940,0.351189,63920.0,63919.0,0.04257369]
[1728886542555,0.249089,63920.0,63919.0,0.04257369]
[1728886543227,0.250089,63920.0,63919.0,0.04257369]
[1728886543656,0.249089,63920.0,63919.0,0.04257369]
[1728886544097,0.250089,63920.0,63919.0,0.04257369]
[1728886544366,0.250089,63920.0,63919.0,0.03085919]
[1728886544580,0.249089,63920.0,63919.0,0.04259368]
[1728886546542,0.250089,63920.0,63919.0,0.04259368]
[1728886546624,0.249089,63920.0,63919.0,0.04259368]
[1728886549899,0.250089,63920.0,63919.0,0.04259368]
[1728886550083,0.249089,63920.0,63919.0,0.04259368]
[1728886550814,0.001644,63920.0,63919.0,0.04259368]
[1728886551040,0.001644,63920.0,63919.0,0.20381769]
[1728886551498,0.001644,63920.0,63919.0,0.21804312]
[1728886551717,0.001644,63920.0,63919.0,0.29014312]
[1728886551956,0.001644,63920.0,63919.0,0.29014581]
[1728886552198,0.001644,63920.0,63919.0,0.29414581]
[1728886552426,0.001644,63920.0,63919.0,0.29014245]
[1728886552929,0.001644,63920.0,63919.0,0.29514245]
[1728886553197,0.001644,63920.0,63919.0,0.30914245]
[1728886553409,0.001644,63920.0,63919.0,0.29740878]
[1728886553639,0.001644,63920.0,63919.0,0.29513795]
[1728886554107,0.001644,63920.0,63919.0,0.29613795]
[1728886554343,0.001644,63920.0,63919.0,0.30913795]
[1728886554831,0.001644,63920.0,63919.0,0.29613795]
[1728886555080,0.001644,63920.0,63919.0,0.31013795]
[1728886555317,0.001644,63920.0,63919.0,0.29613795]
[1728886555554,0.001644,63920.0,63919.0,0.32413795]
[1728886555800,0.001644,63920.0,63919.0,2.03109944]
[1728886556030,0.001644,63920.0,63919.0,1.84592877]
[1728886556261,0.14544413,63926.0,63919.0,1.28972461]
[1728886556474,0.23387254,63925.0,63920.0,0.84353172]
[1728886556757,0.23387254,63925.0,63921.0,0.4959277]
[1728886556991,0.23387254,63925.0,63922.0,0.18780271]
[1728886557228,0.23387254,63925.0,63923.0,0.0265787]
[1728886557463,0.14544413,63926.0,63924.0,0.18780271]
[1728886557716,0.12975347,63926.0,63925.0,0.0265787]
[1728886557938,0.12975347,63926.0,63925.0,0.20198129]
[1728886558196,0.12975347,63926.0,63925.0,0.01417858]
[1728886558646,0.12975347,63926.0,63923.0,0.012]
[1728886558874,0.12975347,63926.0,63924.0,0.16122401]
[1728886559098,0.12975347,63926.0,63924.0,0.17540639]
[1728886559342,0.156433,63925.0,63924.0,0.17540639]
[1728886559596,0.0953,63925.0,63924.0,0.17540639]
[1728886559806,0.251733,63925.0,63924.0,0.17540639]
[1728886560276,0.251733,63925.0,63924.0,0.16122401]
[1728886560523,0.251733,63925.0,63924.0,0.17222401]
[1728886560779,0.251733,63925.0,63924.0,0.011]
[1728886561002,0.252733,63925.0,63924.0,0.023]
[1728886561495,0.251733,63925.0,63924.0,0.023]
[1728886561717,0.253377,63925.0,63924.0,0.012]
[1728886562192,0.253377,63925.0,63924.0,0.024]
[1728886563612,0.096944,63925.0,63924.0,0.024]
[1728886564049,0.253377,63925.0,63924.0,0.024]
[1728886565206,0.096944,63925.0,63924.0,0.024]
[1728886565426,0.096944,63925.0,63924.0,0.32836342]
[1728886565427,0.001644,63925.0,63924.0,0.32836342]
[1728886565687,0.001644,63925.0,63924.0,0.342544]
[1728886566389,0.001644,63925.0,63924.0,0.330544]
[1728886566578,0.001644,63925.0,63924.0,0.342544]
[1728886566835,0.001644,63925.0,63924.0,0.330544]
[1728886567053,0.001644,63925.0,63924.0,0.342544]
[1728886567504,0.001644,63925.0,63924.0,0.330544]
[1728886567727,0.001644,63925.0,63924.0,0.344544]
[1728886567918,0.001644,63925.0,63924.0,0.318544]
[1728886568189,0.001644,63925.0,63924.0,0.34165218]
[1728886568412,0.001644,63925.0,63924.0,0.35565218]
[1728886568681,0.001644,63925.0,63924.0,0.34165218]
[1728886569136,0.001644,63925.0,63924.0,0.51208718]
[1728886569373,0.001644,63925.0,63924.0,0.35565218]
[1728886569879,0.0995,63930.0,63924.0,0.35565218]
[1728886569880,0.092244,63930.0,63929.0,0.14313941]
[1728886570091,0.092244,63930.0,63929.0,0.15224762]
[1728886570324,0.092244,63930.0,63929.0,0.18397626]
[1728886571488,0.092244,63930.0,63929.0,0.18326183]
[1728886571700,0.092244,63930.0,63929.0,0.19497644]
[1728886572629,0.092244,63930.0,63929.0,0.20597644]
[1728886573733,0.092244,63930.0,63929.0,0.36720045]
[1728886573734,0.093886,63930.0,63929.0,0.36720045]
[1728886573956,0.001642,63930.0,63929.0,0.36720045]
[1728886575018,0.249963,63930.0,63929.0,0.36720045]
[1728886575252,0.093542,63930.0,63929.0,0.35287752]
[1728886575720,0.093542,63930.0,63929.0,0.3561962]
[1728886576169,0.093542,63930.0,63929.0,0.3671962]
[1728886576396,0.249963,63930.0,63929.0,0.3561962]
[1728886576829,0.249963,63930.0,63929.0,0.3691962]
[1728886577055,0.093542,63930.0,63929.0,0.3561962]
[1728886577533,0.093542,63930.0,63929.0,0.34139671]
[1728886577762,0.093542,63930.0,63929.0,0.35620524]
[1728886577975,0.093542,63930.0,63929.0,0.32239886]
[1728886578193,0.093542,63930.0,63929.0,0.30939886]
[1728886578438,0.093542,63930.0,63929.0,0.29839886]
[1728886578656,0.093542,63930.0,63929.0,0.31039886]
[1728886579126,0.093542,63930.0,63929.0,0.29839886]
[1728886579560,0.093542,63930.0,63929.0,0.31139886]
[1728886579774,0.093542,63930.0,63929.0,0.32339886]
[1728886579986,0.093542,63930.0,63929.0,0.31139886]
[1728886580434,0.171642,63930.0,63929.0,0.22806583]
[1728886580655,0.328063,63930.0,63929.0,0.21506583]
[1728886580845,0.171642,63930.0,63929.0,0.22806583]
[1728886581301,0.328063,63930.0,63929.0,0.21506583]
[1728886581535,0.328063,63930.0,63929.0,0.21606583]
[1728886581758,0.328063,63930.0,63929.0,0.23006583]
[1728886581972,0.171642,63930.0,63929.0,0.23006583]
[1728886582211,0.171642,63930.0,63929.0,0.21606583]
[1728886582459,0.328063,63930.0,63929.0,0.21606583]
[1728886582921,0.171642,63930.0,63929.0,0.21606583]
[1728886583109,0.093542,63930.0,63929.0,0.21606583]
[1728886583351,0.093542,63930.0,63929.0,0.23006583]
[1728886583573,0.090542,63930.0,63929.0,0.23006583]
[1728886584031,0.090542,63930.0,63929.0,0.20206583]
[1728886584248,0.090542,63930.0,63929.0,0.21606583]
[1728886584461,0.090542,63930.0,63929.0,0.23006583]
[1728886584673,0.090542,63930.0,63929.0,0.21606583]
[1728886585166,0.246963,63930.0,63929.0,0.23010263]
[1728886585609,0.246963,63930.0,63929.0,0.21610331]
[1728886586254,0.246963,63930.0,63929.0,0.21692431]
[1728886586481,0.092184,63930.0,63929.0,0.23092431]
[1728886586720,0.092184,63930.0,63929.0,0.21692431]
[1728886587172,0.092184,63930.0,63929.0,0.23092431]
[1728886587400,0.092184,63930.0,63929.0,0.21692431]
[1728886587837,0.092184,63930.0,63929.0,0.23092431]
[1728886588286,0.092184,63930.0,63929.0,0.21692431]
[1728886588744,0.092184,63930.0,63929.0,0.23092431]
[1728886588970,0.092184,63930.0,63929.0,0.20518974]
[1728886589191,0.092184,63930.0,63929.0,0.22992634]
[1728886589414,0.092184,63930.0,63929.0,0.21692634]
[1728886589853,0.092184,63930.0,63929.0,0.23092634]
[1728886591421,0.092184,63930.0,63929.0,0.38734934]
[1728886591870,0.092184,63930.0,63929.0,0.23092634]
[1728886592103,0.001642,63930.0,63929.0,0.48626516]
[1728886592374,0.20391554,63940.0,63930.0,0.001]
[1728886592594,0.20391554,63940.0,63929.0,2.02685157]
[1728886592595,0.20391554,63940.0,63939.0,0.09633303]
[1728886592814,0.20391554,63940.0,63939.0,0.27238309]
[1728886593037,0.15638,63947.0,63940.0,0.156396]
[1728886593253,0.62520754,63952.0,63946.0,0.09633303]
[1728886593478,0.62520754,63952.0,63951.0,0.09633303]
[1728886593479,0.78157454,63952.0,63951.0,0.09633303]
[1728886593701,0.547702,63952.0,63951.0,0.12289568]
[1728886593899,0.547702,63952.0,63951.0,0.04078253]
[1728886594173,0.0786,63952.0,63951.0,0.04078253]
[1728886594407,0.314368,63954.0,63951.0,0.66233034]
[1728886594408,0.158004,63954.0,63951.0,0.66233034]
[1728886594630,0.001642,63954.0,63952.0,0.02656265]
[1728886594873,0.001642,63954.0,63951.0,0.63576769]
[1728886594874,0.001642,63954.0,63953.0,0.03605533]
[1728886595100,0.094642,63954.0,63953.0,0.03605533]
[1728886595317,0.094642,63954.0,63953.0,0.05026239]
[1728886595541,0.094642,63954.0,63953.0,0.50985971]
[1728886595991,0.251004,63954.0,63953.0,0.51935239]
[1728886596231,0.251004,63954.0,63953.0,0.52735239]
[1728886596481,0.094642,63954.0,63953.0,0.52728975]
[1728886596738,0.094642,63954.0,63953.0,0.51780273]
[1728886596957,0.25061273,63954.0,63953.0,0.51780273]
[1728886597179,0.25061273,63954.0,63953.0,0.52580273]
[1728886597483,0.09425073,63954.0,63953.0,0.52578815]
[1728886597959,0.25061273,63954.0,63953.0,0.52578815]
[1728886598181,0.09425073,63954.0,63953.0,0.52578815]
[1728886598869,0.25061273,63954.0,63953.0,0.52578815]
[1728886600485,0.09425073,63954.0,63953.0,0.52578815]
[1728886601291,0.25061273,63954.0,63953.0,0.52578815]
[1728886601523,0.09425073,63954.0,63953.0,0.52578815]
[1728886603624,0.25061273,63954.0,63953.0,0.52578815]
[1728886604049,0.25061273,63954.0,63953.0,0.52576103]
[1728886605369,0.09425073,63954.0,63953.0,0.52576103]
[1728886605813,0.09425073,63954.0,63953.0,0.68698504]
[1728886607851,0.09425073,63954.0,63953.0,0.68698131]
[1728886608976,0.08365233,63954.0,63953.0,0.68698131]
[1728886611191,0.08365233,63954.0,63953.0,0.68780231]
[1728886611408,0.08529433,63954.0,63953.0,0.68780231]
[1728886615590,0.08529433,63954.0,63953.0,0.68778796]
[1728886616484,0.08529433,63954.0,63953.0,0.69724997]
[1728886617410,0.08529433,63954.0,63953.0,0.68778796]
[1728886617627,0.0946,63958.0,63953.0,0.68778796]
[1728886617820,0.0946,63958.0,63957.0,0.25262549]
[1728886617821,0.09276135,63958.0,63957.0,0.25262549]
[1728886618088,0.09276135,63958.0,63957.0,0.90936539]
[1728886618328,0.09276135,63958.0,63957.0,0.92353559]
[1728886619011,0.09276135,63958.0,63957.0,0.76718059]
[1728886619239,0.09276135,63958.0,63957.0,0.75242489]
[1728886619491,0.09276135,63958.0,63957.0,0.67124774]
[1728886619728,0.09276135,63958.0,63957.0,0.67095551]
[1728886620843,0.09276135,63958.0,63957.0,0.68395551]
[1728886621091,0.32531335,63958.0,63957.0,0.5367315]
[1728886621305,0.32531335,63958.0,63957.0,0.5227315]
[1728886621751,0.32531335,63958.0,63957.0,0.5357315]
[1728886621965,0.32531335,63958.0,63957.0,0.53808213]
[1728886622179,0.32531335,63958.0,63957.0,0.55108213]
[1728886622623,0.32531335,63958.0,63957.0,0.53808213]
[1728886623127,0.32531335,63958.0,63957.0,0.55108213]
[1728886623556,0.32531335,63958.0,63957.0,0.53808213]
[1728886623992,0.32531335,63958.0,63957.0,0.55108213]
[1728886624206,0.32695535,63958.0,63957.0,0.55108213]
[1728886625073,0.32795535,63958.0,63957.0,0.55108213]
[1728886625726,0.32795535,63958.0,63957.0,0.55111698]
[1728886628863,0.32795535,63958.0,63957.0,0.54360462]
[1728886629297,0.32795535,63958.0,63957.0,0.51705623]
[1728886629516,0.32795535,63958.0,63957.0,0.5436165]
[1728886629756,0.32795535,63958.0,63957.0,0.53449361]
[1728886629757,0.45222584,63958.0,63957.0,0.53449361]
[1728886629964,0.55222584,63958.0,63957.0,0.54361643]
[1728886630213,0.55222584,63958.0,63957.0,0.51770993]
[1728886630460,0.55222584,63958.0,63957.0,0.5294474]
[1728886630682,0.55222584,63958.0,63957.0,0.5164474]
[1728886631119,0.55222584,63958.0,63957.0,0.5034474]
[1728886631120,0.45595535,63958.0,63957.0,0.5034474]
[1728886631589,0.45595535,63958.0,63957.0,0.5104474]
[1728886631801,0.46674756,63958.0,63957.0,0.5034474]
[1728886632012,0.6097449,63958.0,63957.0,0.5034474]
[1728886632662,0.6097449,63958.0,63957.0,0.5104474]
[1728886633096,0.6097449,63958.0,63957.0,0.5034474]
[1728886634403,0.6097449,63958.0,63957.0,0.5044474]
[1728886634610,1.83530795,63958.0,63957.0,0.5044474]
[1728886634822,1.83530795,63958.0,63957.0,0.5054474]
[1728886635504,1.83530795,63958.0,63957.0,0.5062694]
[1728886635712,1.83530795,63958.0,63957.0,0.5042694]
[1728886635931,1.6815184,63958.0,63957.0,0.5042694]
[1728886636369,1.6815184,63958.0,63957.0,0.51851125]
[1728886637467,1.6815184,63958.0,63957.0,0.51951125]
[1728886637677,1.6815184,63958.0,63957.0,0.52151125]
[1728886637896,1.6815184,63958.0,63957.0,0.51951125]
[1728886638378,1.6815184,63958.0,63957.0,0.52251125]
[1728886638601,1.6815184,63958.0,63957.0,0.51951125]
[1728886638825,1.6815184,63958.0,63957.0,0.52051125]
[1728886639272,1.6815184,63958.0,63957.0,0.52351125]
[1728886639724,1.6815184,63958.0,63957.0,0.52051125]
[1728886639940,1.6815184,63958.0,63957.0,0.52251125]
[1728886640622,1.6815184,63958.0,63957.0,0.52248688]
[1728886640860,1.6815184,63958.0,63957.0,0.52046797]
[1728886641082,1.6815184,63958.0,63957.0,0.51946797]
[1728886642448,1.6815184,63958.0,63957.0,0.52046797]
[1728886645553,1.6815184,63958.0,63957.0,0.51946797]
[1728886646017,1.6815184,63958.0,63957.0,0.52146797]
[1728886646227,1.6815184,63958.0,63957.0,0.5214681]
[1728886646444,1.6815184,63958.0,63957.0,0.5194681]
[1728886646878,1.6815184,63958.0,63957.0,0.5204681]
[1728886648153,1.6765184,63958.0,63957.0,0.5204681]
[1728886648477,1.6765184,63958.0,63957.0,0.52046879]
[1728886648565,1.6755184,63958.0,63957.0,0.51946879]
[1728886648800,1.6765184,63958.0,63957.0,0.51846879]
[1728886649022,1.6765184,63958.0,63957.0,0.52046879]
[1728886649475,1.6765184,63958.0,63957.0,0.51846879]
[1728886649943,1.6765184,63958.0,63957.0,0.52246879]
[1728886650163,1.6765184,63958.0,63957.0,0.52446879]
[1728886650386,1.6765184,63958.0,63957.0,0.52246879]
[1728886650598,1.6535184,63958.0,63957.0,0.52246879]
[1728886650813,1.6535184,63958.0,63957.0,0.52646879]
[1728886652147,0.42795535,63958.0,63957.0,0.51475943]
[1728886652408,0.42795535,63958.0,63957.0,0.5264852]
[1728886656064,0.42795535,63958.0,63957.0,0.52649757]
[1728886656498,0.45095535,63958.0,63957.0,0.52649757]
[1728886656947,0.45095535,63958.0,63957.0,0.51225572]
[1728886657387,0.45595535,63958.0,63957.0,0.51225572]
[1728886657609,0.45595535,63958.0,63957.0,0.51226047]
[1728886657837,0.45595535,63958.0,63957.0,0.50826047]
[1728886658042,0.45595535,63958.0,63957.0,0.50426047]
[1728886658261,0.45595535,63958.0,63957.0,0.50726047]
[1728886658473,0.45595535,63958.0,63957.0,0.50926047]
[1728886658711,0.45595535,63958.0,63957.0,0.50726047]
[1728886658935,0.45595535,63958.0,63957.0,0.50426047]
[1728886659160,0.45595535,63958.0,63957.0,0.50626047]
[1728886659804,0.45595535,63958.0,63957.0,0.49144448]
[1728886660069,0.45595535,63958.0,63957.0,0.50926561]
[1728886660492,0.45595535,63958.0,63957.0,0.50626561]
[1728886660700,0.45595535,63958.0,63957.0,0.50726561]
[1728886660921,0.45595535,63958.0,63957.0,0.50426561]
[1728886661370,0.45595535,63958.0,63957.0,0.50926561]
[1728886661810,0.45595535,63958.0,63957.0,0.50826561]
[1728886662024,0.45595535,63958.0,63957.0,0.51226561]
[1728886663986,0.45595535,63958.0,63957.0,0.50053044]
[1728886665481,0.45595535,63958.0,63957.0,0.49653044]
[1728886666342,0.45595535,63958.0,63957.0,0.49753044]
[1728886666839,0.45595535,63958.0,63957.0,0.49353044]
[1728886667300,0.45595535,63958.0,63957.0,0.49553044]
[1728886667515,0.45595535,63958.0,63957.0,0.49553139]
[1728886667734,0.45595535,63958.0,63957.0,0.49453139]
[1728886667993,0.45595535,63958.0,63957.0,0.49653139]
[1728886668443,0.45595535,63958.0,63957.0,0.49253139]
[1728886668889,0.45595535,63958.0,63957.0,0.50053139]
[1728886669988,1.6815184,63958.0,63957.0,0.50053139]
[1728886671104,1.6815184,63958.0,63957.0,0.50053106]
[1728886672910,1.22720505,63958.0,63957.0,0.50053106]
[1728886673408,1.22720505,63958.0,63957.0,0.65688606]
[1728886673629,1.22720505,63958.0,63957.0,0.51477809]
[1728886673848,1.22720505,63958.0,63957.0,0.51077809]
[1728886674072,1.22720505,63958.0,63957.0,0.522422]
[1728886674311,1.22720505,63958.0,63957.0,0.532422]
[1728886674552,1.22720505,63958.0,63957.0,0.542422]
[1728886674827,1.22720505,63958.0,63957.0,0.522422]
[1728886675068,1.22720505,63958.0,63957.0,0.53641834]
[1728886675298,1.22720505,63958.0,63957.0,0.86799735]
[1728886675533,1.22720505,63958.0,63957.0,0.6960021]
[1728886675785,1.22720505,63958.0,63957.0,0.8523571]
[1728886676022,0.001642,63958.0,63957.0,0.8523571]
[1728886676258,0.001642,63958.0,63957.0,0.6960021]
[1728886676734,0.001642,63958.0,63957.0,0.74289634]
[1728886677671,0.001642,63958.0,63957.0,0.6960021]
[1728886678654,0.001642,63958.0,63957.0,0.8523571]
[1728886678889,0.001642,63958.0,63957.0,0.6960021]
[1728886679354,0.001642,63958.0,63957.0,0.8523571]
[1728886679828,0.001642,63958.0,63957.0,0.6960021]
[1728886681245,0.001642,63958.0,63957.0,0.68117907]
[1728886681485,0.001642,63958.0,63957.0,0.69597768]
[1728886685635,0.001642,63958.0,63957.0,0.85233268]
[1728886689168,0.001642,63958.0,63957.0,0.85700356]
[1728886690802,0.001642,63958.0,63957.0,3.8903045]
[1728886691045,0.001642,63958.0,63957.0,3.4233305]
[1728886691723,0.001642,63958.0,63957.0,2.8086795]
[1728886692405,0.001644,63965.0,63964.0,0.232537]
[1728886692635,0.001644,63965.0,63964.0,2.73457131]
[1728886692865,0.001644,63965.0,63964.0,2.76255014]
[1728886693080,0.001644,63965.0,63964.0,2.76155014]
[1728886693519,0.001644,63965.0,63964.0,2.76255014]